Workbook

Sheet Instructions
B2: State of Georgia
B3: In Conjunction with NASPO ValuePoint
B4: Electronic Request for Proposals ("eRFP")
B5: eRFP (Event) Number: 41900-DCH0000136
B6: Event Name: Pharmacy Benefit Services
B7: Attachment Z - Pharmacy Drug Rebate Services Cost Worksheet
B9: Instructions for Supplier
B10: Suppliers are bidding on the Design, Development and Implementation (DDI), monthly operational costs, and additional program support the Supplier will charge to administer the Pharmacy Drug Rebate Program as described in the eRFP. Please refer to the instructions below, Attachment A eRFP document "Section 5, Cost Proposal," Attachment C - Common Scope Requirements and Security Standards and Attachment I - Pharmacy Drug Rebate Services Scope of Work for details describing the scope of the system implementation services and Rebate Services to be provided before completing this Cost Worksheet.
B11: 1 | C11: Suppliers shall complete the Cost Proposal worksheet using the cells highlighted in yellow.
B12: 2 | C12: Suppliers shall not modify any cells in the spreadsheet other than those highlighted yellow. The other cells are fixed or will calculate automatically.
B13: 3 | C13: Suppliers shall insert 0 in any yellow highlighted cells that are not applicable or for which the proposed cost is zero ($0).
B14: 4 | C14: Suppliers shall not modify the formulas in the worksheets.
B15: 5 | C15: Suppliers shall provide in Table C a breakdown of their average annual operation and maintenance costs across the ten-year period provided in Tables B.2 and B.3.
B16: 6 | C16: For evaluation purposes, the total cost will be determined by the value found in F14 which is comprised of the sum of the total DDI Costs (Table A), Drug Rebate System Costs (Table B.1), and the CMS (Table B.2) and Supplemental Rebate (Table B.3) Administrative Costs over a period of ten (10) years.
B18: Instructions for Adjusting Costs One or More Years After the Effective Date of the Master Agreement
B20: For Participating Addenda signed one year or more years after the Effective Date of the Master Agreement, the cost will be adjusted using the Consumer Price Index Urban (CPI-U) to account for economic changes that may impact cost.
B23: CPI-U for United States Adjustment Factor Calculation:
B24: A: | C24: CPI-U Index for the month and year of the execution of a Participating Addendum
B25: B: | C25: Less the CPI-U Index for the month and year of the Effective Date of the Master Agreement
B26: C: | C26: Equals Index Point Change
B27: D: | C27: Divided by CPI-U Index B: C/B = D
B28: E: | C28: Result multiplied by 100: D*100 = E: Equals CPI-U Inflation Percentage
B30: Steps to Adjust Costs for CPI-U
B31: 1 | C31: Follow the link below to access the CPI-U data.
C32: https://www.bls.gov/cpi/tables/supplemental-files/home.htm
B33: 2 | C33: Select, download and save the file with the most recently published CPI-U data that is available for the month the Participating Addendum is signed. (Also find and select the CPI-U for when the Master Agreement was originally executed). Use the “All Items” CPI-U “Unadjusted indexes” values instead of the “Seasonally adjusted indexes” values.
B34: 3 | C34: Enter the CPI-U value from the previous step in field C94 "CPI-U for Participating Addendum Date."
B35: 4 | C35: Enter the CPI-U value for the month of the Effective Date of the Master Agreement in C93 "CPI-U for Master Agreement Date MM/DD/20YY."
B36: 5 | C36: The “CPI-U Inflation Percentage” will be calculated automatically based on the values from steps 3 and 4. This will also automatically update all the CPI-U Adjusted Price fields in the cost tables.
B37: 6 | C37: CPI-U Adjusted Prices will be subject to negotiation upon execution of a Participating Addendum.

Sheet Cost Proposal
B2: State of Georgia
B3: In Conjunction with NASPO ValuePoint
B4: Electronic Request for Proposals ("eRFP")
B5: eRFP (Event) Number: 41900-DCH0000136
B6: Event Name: Pharmacy Benefit Services
B7: Attachment Z - Pharmacy Drug Rebate Services Cost Worksheet
B9: SUPPLIER LEGAL ENTITY NAME: | C9: Magellan Medicaid Administration, LLC
B10: SUPPLIER REPRESENTATIVE NAME: | C10: Billy Thomas
B11: SUPPLIER REPRESENTATIVE TITLE: | C11: SVP, Account Management
B12: DATE: | C12: 2024-04-30
B14: TOTAL EVALUATION COST AMOUNT (Sum of Evaluation Costs Below): | F14: =SUM(D26+Z35+Z45+Z55) -> $29,872,231
B16: Table A
B17: Instructions: Please enter the costs to implement your services and/or Solution.
B18: Design, Development, and Implementation (DDI) Cost
C19: Initial Cost | D19: CPI-U Adjusted Cost
B20: Project Planning and Startup | C20: $103,220.40 | D20: =+C20*$C$98 -> $103,220.40
B21: Design, Development, and Testing | C21: $189,237.40 | D21: $189,237.40
B22: Operational Readiness and Production Cutover | C22: $172,034.00 | D22: $172,034.00
B23: Training | C23: $120,423.80 | D23: $120,423.80
B24: Acceptance, Deployment | C24: $68,813.60 | D24: $68,813.60
B25: Certification | C25: $34,406.80 | D25: $34,406.80
B26: Total DDI Costs: | D26: =SUM(D20:D25) -> $688,136.00
B28: Table B.1
B29: Drug Rebate System | F29: Year 1 | H29: Year 2 | J29: Year 3 | L29: Year 4 | N29: Year 5 | P29: Year 6 | R29: Year 7 | T29: Year 8 | V29: Year 9 | X29: Year 10 | Z29: 10-Year Total for Drug Rebate System | AB29: For Informational Purposes Only Annual Average Drug Rebate System Cost
F30: Initial Rate | G30: CPI-U Adjusted Rate | H30: Initial Rate | I30: CPI-U Adjusted Rate | J30: Initial Rate | K30: CPI-U Adjusted Rate | L30: Initial Rate | M30: CPI-U Adjusted Rate | N30: Initial Rate | O30: CPI-U Adjusted Rate | P30: Initial Rate | Q30: CPI-U Adjusted Rate | R30: Initial Rate | S30: CPI-U Adjusted Rate | T30: Initial Rate | U30: CPI-U Adjusted Rate | V30: Initial Rate | W30: CPI-U Adjusted Rate | X30: Initial Rate | Y30: CPI-U Adjusted Rate
B31: Monthly Systems Fee
B32: The monthly system fee should include the Supplier's cost to provide the drug rebate Solution, all upgrades, patches, fixes, maintenance and configuration required to provide the capability to collect Federal Rebates from the Medicaid Drug Rebate Program (MDRP) as well as bill and collect Federal Rebates from Provider administered drug claims (e.g., J-Codes) processed through the State's Care Management Organization (CMO) programs and State's Medicaid Fee-for-Service (FFS) Pharmacy Program, as discussed in the eRFP.
B33: Total Monthly Cost | F33: $42,409 | G33: =F33*C98 -> $42,409 | H33: $42,409 | I33: =H33*C98 -> $42,409 | J33: $42,409 | K33: =J33*C98 -> $42,409 | L33: $43,681 | M33: =L33*C98 -> $43,681 | N33: $44,992 | O33: =N33*C98 -> $44,992 | P33: $46,342 | Q33: =P33*C98 -> $46,342 | R33: $47,732 | S33: =R33*C98 -> $47,732 | T33: $49,164 | U33: =T33*C98 -> $49,164 | V33: $50,639 | W33: =V33*C98 -> $50,639 | X33: $52,158 | Y33: =X33*C98 -> $52,158
F34: X 12 | G34: months | H34: X 12 | I34: months | J34: X 12 | K34: months | L34: X 12 | M34: months | N34: X 12 | O34: months | P34: X 12 | Q34: months | R34: X 12 | S34: months | T34: X 12 | U34: months | V34: X 12 | W34: months | X34: X 12 | Y34: months
B35: Total Period Cost | F35: =G33*F34 -> = $ 508,909 | H35: =I33*H34 -> = $ 508,909 | J35: =K33*J34 -> = $ 508,909 | L35: =M33*L34 -> = $ 524,176 | N35: =O33*N34 -> = $ 539,902 | P35: =Q33*P34 -> = $ 556,099 | R35: =S33*R34 -> = $ 572,782 | T35: =U33*T34 -> = $ 589,965 | V35: =W33*V34 -> = $ 607,664 | X35: =Y33*X34 -> = $ 625,894 | Z35: =SUM(F35:X35) -> = $ 5,543,208 | AB35: =Z35/10 -> = $ 554,321
B38: Table B.2
B39: CMS Rebates | F39: Year 1 | H39: Year 2 | J39: Year 3 | L39: Year 4 | N39: Year 5 | P39: Year 6 | R39: Year 7 | T39: Year 8 | V39: Year 9 | X39: Year 10 | Z39: 10-Year Total for CMS Rebate Administration | AB39: For Informational Purposes Only Annual Average CMS Rebate Administration Cost
F40: Initial Rate | G40: CPI-U Adjusted Rate | H40: Initial Rate | I40: CPI-U Adjusted Rate | J40: Initial Rate | K40: CPI-U Adjusted Rate | L40: Initial Rate | M40: CPI-U Adjusted Rate | N40: Initial Rate | O40: CPI-U Adjusted Rate | P40: Initial Rate | Q40: CPI-U Adjusted Rate | R40: Initial Rate | S40: CPI-U Adjusted Rate | T40: Initial Rate | U40: CPI-U Adjusted Rate | V40: Initial Rate | W40: CPI-U Adjusted Rate | X40: Initial Rate | Y40: CPI-U Adjusted Rate
B41: Monthly Administration Fee
B42: The monthly administration fee should include the Supplier's cost to bill and collect Federal Rebates from the MDRP as well as bill and collect Federal Rebates from Provider administered drug claims (e.g., J-Codes) processed through the State's Care Management Organization (CMO) programs and State's Medicaid Fee-for-Service (FFS) Pharmacy Program, as discussed in the eRFP.
B43: Total Monthly Cost | F43: $122,551 | G43: =F43*C98 -> $122,551 | H43: $122,551 | I43: =H43*C98 -> $122,551 | J43: $122,551 | K43: =J43*C98 -> $122,551 | L43: $126,227 | M43: =L43*C98 -> $126,227 | N43: $130,014 | O43: =N43*C98 -> $130,014 | P43: $133,914 | Q43: =P43*C98 -> $133,914 | R43: $137,932 | S43: =R43*C98 -> $137,932 | T43: $142,070 | U43: =T43*C98 -> $142,070 | V43: $146,332 | W43: =V43*C98 -> $146,332 | X43: $150,722 | Y43: =X43*C98 -> $150,722
F44: X 12 | G44: months | H44: X 12 | I44: months | J44: X 12 | K44: months | L44: X 12 | M44: months | N44: X 12 | O44: months | P44: X 12 | Q44: months | R44: X 12 | S44: months | T44: X 12 | U44: months | V44: X 12 | W44: months | X44: X 12 | Y44: months
B45: Total Period Cost | F45: =G43*F44 -> = $ 1,470,608 | H45: =I43*H44 -> = $ 1,470,608 | J45: =K43*J44 -> = $ 1,470,608 | L45: =M43*L44 -> = $ 1,514,726 | N45: =O43*N44 -> = $ 1,560,168 | P45: =Q43*P44 -> = $ 1,606,973 | R45: =S43*R44 -> = $ 1,655,182 | T45: =U43*T44 -> = $ 1,704,838 | V45: =W43*V44 -> = $ 1,755,983 | X45: =Y43*X44 -> = $ 1,808,663 | Z45: =SUM(F45:X45) -> = $ 16,018,358 | AB45: =Z45/10 -> = $ 1,601,836
B48: Table B.3
B49: Supplemental Rebates | F49: Year 1 | H49: Year 2 | J49: Year 3 | L49: Year 4 | N49: Year 5 | P49: Year 6 | R49: Year 7 | T49: Year 8 | V49: Year 9 | X49: Year 10 | Z49: 10-Year Total for Supplemental Rebate Administration | AB49: For Informational Purposes Only Annual Average Supplemental Rebate Administration Cost
F50: Initial Rate | G50: CPI-U Adjusted Rate | H50: Initial Rate | I50: CPI-U Adjusted Rate | J50: Initial Rate | K50: CPI-U Adjusted Rate | L50: Initial Rate | M50: CPI-U Adjusted Rate | N50: Initial Rate | O50: CPI-U Adjusted Rate | P50: Initial Rate | Q50: CPI-U Adjusted Rate | R50: Initial Rate | S50: CPI-U Adjusted Rate | T50: Initial Rate | U50: CPI-U Adjusted Rate | V50: Initial Rate | W50: CPI-U Adjusted Rate | X50: Initial Rate | Y50: CPI-U Adjusted Rate
B51: Monthly Administration Fee
B52: The monthly administration fee should include the Supplier's ability to maintain an online bidding site for collection of bids, to present financial modeling for State Advisory Board meetings, to negotiate with pharmaceutical Manufacturers, to bill for contracted Supplemental Rebates, and collect Supplemental Rebates on behalf of the State's Medicaid Fee-for-Service (FFS) Pharmacy Program.
B53: Total Monthly Cost | F53: $58,317 | G53: =F53*C98 -> $58,317 | H53: $58,317 | I53: =H53*C98 -> $58,317 | J53: $58,317 | K53: =J53*C98 -> $58,317 | L53: $60,067 | M53: =L53*C98 -> $60,067 | N53: $61,869 | O53: =N53*C98 -> $61,869 | P53: $63,725 | Q53: =P53*C98 -> $63,725 | R53: $65,637 | S53: =R53*C98 -> $65,637 | T53: $67,606 | U53: =T53*C98 -> $67,606 | V53: $69,634 | W53: =V53*C98 -> $69,634 | X53: $71,723 | Y53: =X53*C98 -> $71,723
F54: X 12 | G54: months | H54: X 12 | I54: months | J54: X 12 | K54: months | L54: X 12 | M54: months | N54: X 12 | O54: months | P54: X 12 | Q54: months | R54: X 12 | S54: months | T54: X 12 | U54: months | V54: X 12 | W54: months | X54: X 12 | Y54: months
B55: Total Period Cost | F55: =G53*F54 -> = $ 699,807 | H55: =I53*H54 -> = $ 699,807 | J55: =K53*J54 -> = $ 699,807 | L55: =M53*L54 -> = $ 720,801 | N55: =O53*N54 -> = $ 742,425 | P55: =Q53*P54 -> = $ 764,698 | R55: =S53*R54 -> = $ 787,639 | T55: =U53*T54 -> = $ 811,268 | V55: =W53*V54 -> = $ 835,606 | X55: =Y53*X54 -> = $ 860,674 | Z55: =SUM(F55:X55) -> = $ 7,622,529 | AB55: =Z55/10 -> = $ 762,253
B58: Table C
B59: Note: The requested information below will be used for information purposes only.
B60: Instructions: Please enter your average annual operational costs in the unprotected cells below. Provide a breakdown of "Other" costs, if included.
B61: Annual Operation & Maintenance | C61: CMS Rebates | D61: CPI-U Adjusted Cost | E61: Supplemental Rebates | F61: CPI-U Adjusted Cost
B62: Staffing | C62: $1,540,268.45 | D62: =+C62*$C$98 -> $1,540,268.45 | E62: 687618.5 | F62: =+E62*$C$98 -> $687,618.50
B63: Training | C63: $23,362.60 | D63: =+C63*$C$98 -> $23,362.60 | E63: 11117.37 | F63: $11,117.37
B64: Rebate Processing and Systems | C64: $375,591.19 | D64: =+C64*$C$98 -> $375,591.19 | E64: 178729.6 | F64: $178,729.60
B65: Rebate Negotiation | C65: N/A | D65: N/A | E65: 45336.84 | F65: $45,336.84
B66: Postage and Mailing | C66: $3,112.71 | D66: =+C66*$C$98 -> $3,112.71 | E66: 1481.22 | F66: $1,481.22
B67: Printing | C67: $734.80 | D67: =+C67*$C$98 -> $734.80 | E67: 349.67 | F67: $349.67
B68: Reports | C68: $18,892.62 | D68: =+C68*$C$98 -> $18,892.62 | E68: 8990.28 | F68: $8,990.28
B69: Other** | C69: $15,464.68 | D69: =+C69*$C$98 -> $15,464.68 | E69: 7359.05 | F69: $7,359.05
B70: Total Operational Cost: | D70: =SUM(D62:D69) -> $1,977,427.05 | F70: =SUM(F62:F69) -> $940,982.53
B72: **Other Costs Breakdown
B73: Surety Bond | C73: $15,464.68 | D73: =+C73*$C$98 -> $15,464.68 | E73: 7359.05 | F73: =+E73*$C$98 -> $7,359.05
D74: 0 | F74: 0
D75: 0 | F75: 0
D76: 0 | F76: 0
D77: 0 | F77: 0
D78: 0 | F78: 0
B79: Total Other Costs: | D79: =SUM(D72:D78) -> $15,464.68 | F79: =SUM(F72:F78) -> $7,359.05
B81: Table D
B82: Instructions: Complete the section below by entering the Hourly Rate in the yellow boxes for each identified Role. As may be requested by the State on a case by case basis and agreed upon by the Contractor, the Contractor will provide ad hoc services related to potential tasks as described below. Note: These charges will only be billed for project-related services not specified in the eRFP and requested by the State for such services in writing. The total cost for all State requested and approved projects shall not exceed the amount indicated by the State in its Participating Addendum. The proposed costs will not be evaluated as part of the total contract value.
B83: Ad Hoc Professional Services | E83: Year 1 | G83: Year 2 | I83: Year 3 | K83: Year 4 | M83: Year 5 | O83: Year 6 | Q83: Year 7 | S83: Year 8 | U83: Year 9 | W83: Year 10 | Y83: 10-Year Average of Hourly Rates
B84: Role | C84: Potential Responsibilities | E84: Initial Hourly Rate | F84: CPI-U Adjusted Rate | G84: Initial Hourly Rate | H84: CPI-U Adjusted Rate | I84: Initial Hourly Rate | J84: CPI-U Adjusted Rate | K84: Initial Hourly Rate | L84: CPI-U Adjusted Rate | M84: Initial Hourly Rate | N84: CPI-U Adjusted Rate | O84: Initial Hourly Rate | P84: CPI-U Adjusted Rate | Q84: Initial Hourly Rate | R84: CPI-U Adjusted Rate | S84: Initial Hourly Rate | T84: CPI-U Adjusted Rate | U84: Initial Hourly Rate | V84: CPI-U Adjusted Rate | W84: Initial Hourly Rate | X84: CPI-U Adjusted Rate
B85: Business Analyst | C85: Evaluates business processes, anticipating requirements, uncovering areas for improvement, and developing and implementing Solutions. | E85: $89.00 | F85: =MAX(ROUND(E85*$C$98,2),0) -> $89.00 | G85: $91.67 | H85: =MAX(ROUND(G85*$C$98,2),0) -> $91.67 | I85: $94.42 | J85: =MAX(ROUND(I85*$C$98,2),0) -> $94.42 | K85: $97.25 | L85: =MAX(ROUND(K85*$C$98,2),0) -> $97.25 | M85: $100.17 | N85: =MAX(ROUND(M85*$C$98,2),0) -> $100.17 | O85: $103.18 | P85: =MAX(ROUND(O85*$C$98,2),0) -> $103.18 | Q85: $106.28 | R85: =MAX(ROUND(Q85*$C$98,2),0) -> $106.28 | S85: $109.47 | T85: =MAX(ROUND(S85*$C$98,2),0) -> $109.47 | U85: $112.75 | V85: =MAX(ROUND(U85*$C$98,2),0) -> $112.75 | W85: $116.13 | X85: =MAX(ROUND(W85*$C$98,2),0) -> $116.13 | Y85: =(F85+H85+J85+L85+N85+P85+R85+T85+V85+X85)/10 -> $102.03
B86: Senior Developer | C86: Responsible for designing, testing, and implementing new and updated software programs. | E86: $151.44 | F86: =MAX(ROUND(E86*$C$98,2),0) -> $151.44 | G86: $155.98 | H86: =MAX(ROUND(G86*$C$98,2),0) -> $155.98 | I86: $160.66 | J86: =MAX(ROUND(I86*$C$98,2),0) -> $160.66 | K86: $165.48 | L86: =MAX(ROUND(K86*$C$98,2),0) -> $165.48 | M86: $170.44 | N86: =MAX(ROUND(M86*$C$98,2),0) -> $170.44 | O86: $175.55 | P86: =MAX(ROUND(O86*$C$98,2),0) -> $175.55 | Q86: $180.82 | R86: =MAX(ROUND(Q86*$C$98,2),0) -> $180.82 | S86: $186.24 | T86: =MAX(ROUND(S86*$C$98,2),0) -> $186.24 | U86: $191.83 | V86: =MAX(ROUND(U86*$C$98,2),0) -> $191.83 | W86: $197.58 | X86: =MAX(ROUND(W86*$C$98,2),0) -> $197.58 | Y86: =(F86+H86+J86+L86+N86+P86+R86+T86+V86+X86)/10 -> $173.60
B87: Developer | C87: Responsible for developing, coding, installing, and maintaining software systems. | E87: $121.15 | F87: =MAX(ROUND(E87*$C$98,2),0) -> $121.15 | G87: $124.78 | H87: =MAX(ROUND(G87*$C$98,2),0) -> $124.78 | I87: $128.52 | J87: =MAX(ROUND(I87*$C$98,2),0) -> $128.52 | K87: $132.38 | L87: =MAX(ROUND(K87*$C$98,2),0) -> $132.38 | M87: $136.35 | N87: =MAX(ROUND(M87*$C$98,2),0) -> $136.35 | O87: $140.44 | P87: =MAX(ROUND(O87*$C$98,2),0) -> $140.44 | Q87: $144.65 | R87: =MAX(ROUND(Q87*$C$98,2),0) -> $144.65 | S87: $148.99 | T87: =MAX(ROUND(S87*$C$98,2),0) -> $148.99 | U87: $153.46 | V87: =MAX(ROUND(U87*$C$98,2),0) -> $153.46 | W87: $158.06 | X87: =MAX(ROUND(W87*$C$98,2),0) -> $158.06 | Y87: $138.88
B88: Quality assurance/Test | C88: Works with the development team to debug code, correct errors, and troubleshoot any issues with software code. | E88: $97.90 | F88: =MAX(ROUND(E88*$C$98,2),0) -> $97.90 | G88: $100.84 | H88: =MAX(ROUND(G88*$C$98,2),0) -> $100.84 | I88: $103.87 | J88: =MAX(ROUND(I88*$C$98,2),0) -> $103.87 | K88: $106.99 | L88: =MAX(ROUND(K88*$C$98,2),0) -> $106.99 | M88: $110.20 | N88: =MAX(ROUND(M88*$C$98,2),0) -> $110.20 | O88: $113.51 | P88: =MAX(ROUND(O88*$C$98,2),0) -> $113.51 | Q88: $116.92 | R88: =MAX(ROUND(Q88*$C$98,2),0) -> $116.92 | S88: $120.43 | T88: =MAX(ROUND(S88*$C$98,2),0) -> $120.43 | U88: $124.04 | V88: =MAX(ROUND(U88*$C$98,2),0) -> $124.04 | W88: $127.76 | X88: =MAX(ROUND(W88*$C$98,2),0) -> $127.76 | Y88: $112.25
B89: Total Ad Hoc Professional Services Cost (Sum of 10-Year Average of Hourly Rates for all Identified Roles) | Y89: =SUM(Y85:Y88) -> $526.76
B92: Table E
B93: Consumer Price Index Urban (CPI-U) Adjustment:
B94: A. CPI-U for Master Agreement Date MM/DD/20YY: | C94: 0.000000
B95: B. CPI-U for Participating Addendum Date: | C95: 0.000000
B96: C. Index Point Change equals B minus A: | C96: =C95-C94 -> 0.000000
B97: D. Equals C divided by A: | C97: =IFERROR(C96/C94,0) -> 0.000000
B98: E. CPI-U Inflation Percentage equals B plus 1.00: | C98: =C97+1 -> 1.000000

Sheet Scoring Formula
B3: State of Georgia
B4: In Conjunction with NASPO ValuePoint
B5: Electronic Request for Proposals ("eRFP")
B6: eRFP (Event) Number: 41900-DCH0000136
B7: Event Name: Pharmacy Benefit Services
B8: Attachment Z - Pharmacy Drug Rebate Services Cost Worksheet
B10: Cost Scoring Formula
B13: The Supplier deemed to have the most competitive cost response overall, as determined by the Lead State, will receive the maximum score for the cost criteria. As a general rule, other Suppliers’ cost responses will receive a percentage of the maximum score based on the percentage differential between the most competitive cost proposal and the specific proposal in question. This cost scoring can be accomplished using the following formula:
B14: L/R x P = Z L = Price of the Supplier's response with the lowest cost. R = Total cost of the Proposal being ranked. P = Total points available for cost scoring. Z = Assigned Points.
B15: EXAMPLE - The Lead State receives responses from two Suppliers on an RFP. The RFP assigned 700 possible points for technical scores and 300 possible points for cost scores. Supplier A's cost proposal is $50,000. Supplier B's cost proposal is $55,000. As Supplier A offered the lowest cost, Supplier A receives 300 points. The issuing officer can calculate the number of cost points to assign to Supplier B's cost score by using the formula noted above. As shown below, Supplier B's total cost score is 272.7 points. L/R x P = Z ($50,000/$55,000) x 300 = Z .909 x 300 = Z 272.7 = Z
